fUSD/lending_fUSD_20251117
["ID","MTS","AMOUNT","RATE_DAILY","PERIOD"]
[394179501,1763356241169,-151.0,0.00024658,7]
[394179504,1763356241181,-151.0,0.00024658,7]
[394179506,1763356241193,-247.687276,0.00024658,7]
[394179508,1763356241205,-813.966306,0.00024658,7]
[394179511,1763356241217,-813.966306,0.00024658,7]
[394179513,1763356241229,-161.933926,0.00024658,7]
[394179515,1763356241240,-813.966306,0.00024658,7]
[394179517,1763356241252,-813.966306,0.00024658,7]
[394179520,1763356241264,-159.522647,0.00024658,7]
[394179522,1763356241275,-159.522647,0.00024658,7]
[394179524,1763356241287,-159.522647,0.00024658,7]
[394179527,1763356241299,-151.0,0.00024658,7]
[394179529,1763356241311,-159.522647,0.00024658,7]
[394179531,1763356241322,-157.550777,0.00024658,7]
[394179533,1763356241334,-151.0,0.00024658,7]
[394179536,1763356241345,-151.0,0.00024658,7]
[394179538,1763356241358,-151.0,0.00024658,7]
[394179540,1763356241371,-151.0,0.00024658,7]
[394179543,1763356241384,-151.0,0.00024658,7]
[394179545,1763356241395,-151.0,0.00024658,7]
[394179547,1763356241407,-151.0,0.00024658,7]
[394179549,1763356241418,-158.546018,0.00024658,7]
[394179552,1763356241431,-151.0,0.00024658,7]
[394179554,1763356241443,-151.0,0.00024658,7]
[394179556,1763356241455,-274.24725,0.00024658,7]
[394179558,1763356241467,-168.7484106,0.00024694,2]
[394179561,1763356241479,-472.87353408,0.000247,2]
[394179563,1763356241491,-206.6,0.00024758,2]
[394179565,1763356241503,-323.0,0.00024767,2]
[394179568,1763356241515,-165.0,0.00024767,2]
[394179570,1763356241527,-903.89246821,0.00024784,2]
[394179572,1763356241539,-500.0,0.00024793,2]
[394179575,1763356241562,-500.0,0.00024793,2]
[394179577,1763356241577,-500.0,0.00024793,2]
[394179579,1763356241588,-500.0,0.00024793,2]
[394179581,1763356241599,-500.0,0.00024793,2]
[394179583,1763356241611,-519.40451883,0.00024793,2]
[394179586,1763356241625,-509.07020194,0.00024793,2]
[394179588,1763356241638,-512.06566458,0.00024793,2]
[394179590,1763356241650,-509.40109854,0.00024793,2]
[394179592,1763356241662,-550.71254645,0.00024793,2]
[394179594,1763356241673,-150616.51676753,0.00024794,2]
[394179599,1763356241704,-25385.25961096,0.00024794,2]
[394179601,1763356241718,-8493.37204896,0.00024794,2]
[394179604,1763356241733,-8128.45946656,0.00024794,2]
[394179606,1763356241748,-12182.51844665,0.00024794,2]
[394179706,1763356243103,-150.0,0.00016891,2]
[394179707,1763356243112,-4320.48707646,0.00020294,2]
[394179708,1763356243123,-575.73661454,0.00020294,2]
[394179709,1763356243139,-5299.55684541,0.00020294,2]
[394179710,1763356243148,-152.0,0.00021918,2]
[394179711,1763356243158,-22929.75665484,0.00024794,2]
[394179712,1763356243176,-294.75802627,0.00024794,2]
[394179713,1763356243187,-899.99999993,0.00024794,2]
[394179714,1763356243441,-120968.4880921,0.00024794,2]
[394179715,1763356243455,-1881.13027418,0.00024794,2]
[394179716,1763356243466,-398.35575403,0.00024794,2]
[394179717,1763356243598,-151.1,0.00019673,2]
[394179718,1763356243606,-3367.74951428,0.00020454,2]
[394179719,1763356243650,-589.34105002,0.00020454,2]
[394179723,1763356245523,-428.14468468,0.00020454,2]
[394179724,1763356245578,-1238.9,0.00020454,2]
[394179725,1763356245590,-879.31075102,0.00020454,2]
[394179726,1763356245601,-907.51733701,0.00023454,2]
[394179727,1763356245613,-402.27880109,0.00023454,2]
[394179728,1763356245627,-1256.96969341,0.00023454,2]
[394179729,1763356245801,-1372.4,0.00023454,2]
[394179730,1763356245857,-2549.83416849,0.00023454,2]
[394179731,1763356245867,-3676.31840507,0.00024794,2]
[394179732,1763356245879,-354.70418667,0.00024794,2]
[394179734,1763356381729,750.0,0.00030137,120]
[394179735,1763356801981,365.3,0.00013699,2]
[394179738,1763357112894,1447.96131455,0.00013,2]
[394179739,1763357112925,3476.89569475,0.00013,2]
[394179740,1763357112950,3476.89569475,0.00013,2]
[394179741,1763357112977,3476.89569475,0.00013,2]
[394179742,1763357113001,259.70088991,0.00013,2]
[394179746,1763357227847,745844.0,0.0003,120]
[394179749,1763357316199,2219.17167709,0.00015807,2]
[394179750,1763357341181,150.0,0.00030136,120]
[394179751,1763357345633,1044.04,0.00021405,30]
[394179755,1763357353473,-500.0,0.000175,6]
[394179756,1763357353498,-195.0,0.0001755,2]
[394179757,1763357353522,-1100.0,0.000176,6]
[394179792,1763357431737,-328.0,0.0001768,2]
[394179793,1763357431747,-195.0,0.0001768,2]
[394179794,1763357431757,-487.27893922,0.000177,6]
[394179795,1763357431768,-1112.72106078,0.000177,6]
[394179796,1763357431778,-2200.0,0.000178,6]
[394179797,1763357431787,-2800.0,0.000179,6]
[394179798,1763357431797,-300.0,0.00017917,2]
[394179799,1763357431807,-284.94077875,0.00017918,2]
[394179800,1763357431816,-723.7408283,0.00017918,2]
[394179801,1763357431826,-8157.02803911,0.00017918,2]
[394179802,1763357431838,-1171.90123593,0.00017918,2]
[394179803,1763357431847,-362.2255838,0.00017918,2]
[394179804,1763357431857,-286.49762542,0.00017918,2]
[394179805,1763357431867,-501.06271058,0.00017973,2]
[394179806,1763357431877,-500.0,0.00017973,2]
[394179807,1763357431886,-503.37601405,0.00017973,2]
[394179808,1763357431895,-602.5949788,0.0001799,2]
[394179809,1763357431905,-602.5949788,0.0001799,2]
[394179810,1763357431915,-315.61927332,0.00017999,2]
[394179811,1763357431924,-300.0,0.00017999,2]
[394179812,1763357431934,-500.0,0.00017999,2]
[394179813,1763357431943,-500.0,0.00017999,2]
[394179814,1763357431952,-500.0,0.00017999,2]
[394179815,1763357431962,-500.0,0.00017999,2]
[394179816,1763357431971,-23.09122053,0.00017999,2]
[394179817,1763357431994,-439.31727479,0.00017999,2]
[394179818,1763357432006,-37.59150468,0.00017999,2]
[394179819,1763357432015,-369.52917611,0.00017999,2]
[394179820,1763357432028,-130.47082389,0.00017999,2]
[394179821,1763357432037,-500.0,0.00017999,2]
[394179822,1763357432048,-500.0,0.00017999,2]
[394179823,1763357432058,-500.0,0.00017999,2]
[394179824,1763357432068,-106.07964984,0.00017999,2]
[394179836,1763357437746,-393.92035016,0.00017999,2]
[394179837,1763357437756,-500.0,0.00017999,2]
[394179838,1763357437766,-475.65819157,0.00017999,2]
[394179839,1763357437775,-501.79448901,0.00017999,2]
[394179840,1763357437785,-500.0,0.00017999,2]
[394179841,1763357437794,-505.95560914,0.00017999,2]
[394179842,1763357437804,-412.68971236,0.00017999,2]
[394179843,1763357437856,-87.31028764,0.00017999,2]
[394179844,1763357437867,-500.0,0.00017999,2]
[394179845,1763357437876,-500.0,0.00017999,2]
[394179846,1763357437886,-500.0,0.00017999,2]
[394179847,1763357437895,-500.0,0.00017999,2]
[394179848,1763357437904,-500.0,0.00017999,2]
[394179849,1763357437914,-229.5527513,0.00017999,2]
[394179852,1763357437939,-270.4472487,0.00017999,2]
[394179854,1763357437949,-500.0,0.00017999,2]
[394179856,1763357437958,-500.0,0.00017999,2]
[394179858,1763357437967,-500.0,0.00017999,2]
[394179859,1763357437976,-500.0,0.00017999,2]
[394179861,1763357437987,-500.0,0.00017999,2]
[394179864,1763357437998,-500.0,0.00017999,2]
[394179866,1763357438008,-500.0,0.00017999,2]
[394179868,1763357438017,-500.0,0.00017999,2]
[394179869,1763357438027,-500.0,0.00017999,2]
[394179871,1763357438037,-500.0,0.00017999,2]
[394179873,1763357438047,-500.0,0.00017999,2]
[394179875,1763357438056,-500.0,0.00017999,2]
[394179877,1763357438067,-500.0,0.00017999,2]
[394179879,1763357438076,-500.0,0.00017999,2]
[394179882,1763357438091,-500.0,0.00017999,2]
[394179884,1763357438101,-500.0,0.00017999,2]
[394179886,1763357438110,-500.0,0.00017999,2]
[394179888,1763357438119,-500.0,0.00017999,2]
[394179890,1763357438129,-500.0,0.00017999,2]
[394179892,1763357438139,-500.0,0.00017999,2]
[394179893,1763357438148,-500.0,0.00017999,2]
[394179895,1763357438157,-286.04066955,0.00017999,2]
[394179898,1763357438167,-500.0,0.00017999,2]
[394179899,1763357438176,-500.0,0.00017999,2]
[394179901,1763357438186,-500.0,0.00017999,2]
[394179903,1763357438195,-500.0,0.00017999,2]
[394179905,1763357438204,-500.0,0.00017999,2]
[394179907,1763357438213,-500.0,0.00017999,2]
[394179909,1763357438223,-500.0,0.00017999,2]
[394179911,1763357438232,-500.0,0.00017999,2]
[394179913,1763357438242,-500.0,0.00017999,2]
[394179915,1763357438251,-500.0,0.00017999,2]
[394179917,1763357438261,-500.0,0.00017999,2]
[394179919,1763357438270,-500.0,0.00017999,2]
[394179921,1763357438279,-500.0,0.00017999,2]
[394179923,1763357438289,-500.0,0.00017999,2]
[394179925,1763357438299,-500.0,0.00017999,2]
[394179927,1763357438308,-373.79503358,0.00017999,2]
[394179929,1763357438317,-500.0,0.00017999,2]
[394179931,1763357438327,-609.97171214,0.00017999,2]
[394179933,1763357438336,-500.0,0.00017999,2]
[394179935,1763357438346,-500.0,0.00017999,2]
[394179937,1763357438356,-500.0,0.00017999,2]
[394179939,1763357438365,-500.0,0.00017999,2]
[394179941,1763357438377,-500.0,0.00017999,2]
[394179943,1763357438386,-196.39990074,0.00017999,2]
[394179946,1763357438396,-1867973.57923046,0.00018,2]
[394180065,1763357439676,-467.1672132,0.00018,2]
[394180422,1763357443169,-495.37459953,0.00018,2]
[394180602,1763357445684,-5145.12719541,0.00018,2]
[394180603,1763357445965,-500.0,0.00018,2]
[394180624,1763357861268,160.85,0.0001008,2]
[394180625,1763357861485,160.85,0.0001344,2]
[394180632,1763358078045,-160.85,0.00016801,2]
[394180633,1763358078075,-308.0,0.00016801,2]
[394180635,1763358134496,495.0,0.0003013,120]
[394180675,1763358544769,150.0,0.00030135,120]
[394180834,1763358602518,227.97003561,0.0003,120]
[394180842,1763358631833,-317.0,0.00017218,2]
[394180843,1763358631843,-166.66,0.00017218,2]
[394180844,1763358631852,-166.66,0.00017581,2]
[394180845,1763358631862,-502.60475039,0.00017873,2]
[394180846,1763358631871,-170.74382583,0.00017873,2]
[394180847,1763358631880,-1200.0,0.00017898,2]
[394180848,1763358631891,-1390.669,0.00017899,2]
[394180849,1763358631902,-194.583,0.00017899,2]
[394180850,1763358631911,-300.0,0.00017899,2]
[394180851,1763358631921,-393.839,0.000179,2]
[394180852,1763358631930,-315.24902272,0.000179,2]
[394180853,1763358631940,-1983.17458001,0.000179,2]
[394180854,1763358631952,-705.35807663,0.000179,2]
[394180855,1763358631966,-575.75,0.000179,2]
[394180856,1763358631978,-8735.80251676,0.000179,2]
[394180857,1763358631988,-128.98079444,0.000179,2]
[394180858,1763358631999,-43.79873715,0.000179,2]
[394180859,1763358632008,-844.34747513,0.000179,2]
[394180860,1763358632019,-252.73500001,0.000179,2]
[394180861,1763358632030,-1895.5,0.000179,2]
[394180862,1763358632040,-1232.94344881,0.000179,2]
[394180863,1763358632054,-453.90225497,0.000179,2]
[394180864,1763358632069,-356.7628264,0.000179,2]
[394180865,1763358632080,-12105.88011568,0.000179,2]
[394180866,1763358632090,-166.66,0.00017943,2]
[394180867,1763358632100,-501.70606992,0.00017973,2]
[394180868,1763358632109,-500.0,0.00017973,2]
[394180869,1763358632119,-500.0,0.00017973,2]
[394180871,1763358632128,-500.0,0.00017973,2]
[394180872,1763358632138,-501.86673455,0.00017973,2]
[394180875,1763358632147,-500.86660231,0.00017973,2]
[394180876,1763358632156,-500.0,0.00017982,2]
[394180878,1763358632166,-200.86499294,0.0001799,2]
[394180880,1763358632174,-46369.27731841,0.00017998,2]
[394180881,1763358632184,-500.0,0.00017999,2]
[394180882,1763358632194,-500.0,0.00017999,2]
[394180883,1763358632204,-500.0,0.00017999,2]
[394180884,1763358632213,-508.96624547,0.00017999,2]
[394180885,1763358632222,-500.0,0.00017999,2]
[394180886,1763358632232,-500.0,0.00017999,2]
[394180887,1763358632241,-500.0,0.00017999,2]
[394180888,1763358632251,-500.0,0.00017999,2]
[394180889,1763358632261,-579.54102495,0.00017999,2]
[394180891,1763358632270,-632.41209536,0.00017999,2]
[394180893,1763358632279,-300.0,0.00017999,2]
[394180895,1763358632288,-161.13,0.00017999,2]
[394180897,1763358632297,-300.0,0.00017999,2]
[394180899,1763358632306,-500.0,0.00017999,2]
[394180900,1763358632315,-425.30908092,0.00017999,2]
[394180901,1763358632324,-500.0,0.00017999,2]
[394180902,1763358632334,-500.0,0.00017999,2]
[394180903,1763358632343,-500.0,0.00017999,2]
[394180904,1763358632357,-500.0,0.00017999,2]
[394180905,1763358632366,-500.0,0.00017999,2]
[394180906,1763358632375,-500.0,0.00017999,2]
[394180907,1763358632384,-500.0,0.00017999,2]
[394180908,1763358632394,-500.0,0.00017999,2]
[394180909,1763358632403,-500.0,0.00017999,2]
[394180910,1763358632412,-500.0,0.00017999,2]
[394180911,1763358632421,-500.0,0.00017999,2]
[394180912,1763358632430,-500.0,0.00017999,2]
[394180913,1763358632439,-500.0,0.00017999,2]
[394180914,1763358632448,-500.0,0.00017999,2]
[394180915,1763358632457,-500.0,0.00017999,2]
[394180916,1763358632466,-500.0,0.00017999,2]
[394180917,1763358632476,-500.0,0.00017999,2]
[394180918,1763358632485,-500.0,0.00017999,2]
[394180919,1763358632494,-500.0,0.00017999,2]
[394180920,1763358632503,-500.0,0.00017999,2]
[394180921,1763358632512,-500.0,0.00017999,2]
[394180922,1763358632525,-500.0,0.00017999,2]
[394180923,1763358632534,-500.0,0.00017999,2]
[394180924,1763358632543,-500.0,0.00017999,2]
[394180925,1763358632552,-500.0,0.00017999,2]
[394180926,1763358632562,-500.0,0.00017999,2]
[394180927,1763358632571,-469.52614591,0.00017999,2]
[394180928,1763358632580,-500.0,0.00017999,2]
[394180929,1763358632589,-500.0,0.00017999,2]
[394180930,1763358632603,-500.0,0.00017999,2]
[394180931,1763358632613,-500.0,0.00017999,2]
[394180932,1763358632622,-500.0,0.00017999,2]
[394180933,1763358632631,-500.0,0.00017999,2]
[394180934,1763358632640,-500.0,0.00017999,2]
[394180935,1763358632650,-500.0,0.00017999,2]
[394180936,1763358632660,-332.9607341,0.00017999,2]
[394180937,1763358632669,-500.0,0.00017999,2]
[394180938,1763358632679,-500.0,0.00017999,2]
[394180939,1763358632688,-500.0,0.00017999,2]
[394180940,1763358632698,-500.0,0.00017999,2]
[394180941,1763358632707,-400.0,0.00017999,2]
[394180942,1763358632716,-500.0,0.00017999,2]
[394180943,1763358632727,-500.0,0.00017999,2]
[394180944,1763358632737,-500.0,0.00017999,2]
[394180945,1763358632746,-500.0,0.00017999,2]
[394180946,1763358632755,-500.0,0.00017999,2]
[394180947,1763358632764,-500.0,0.00017999,2]
[394180948,1763358632773,-500.0,0.00017999,2]
[394180949,1763358632782,-500.0,0.00017999,2]
[394180950,1763358632791,-500.0,0.00017999,2]
[394180951,1763358632801,-500.0,0.00017999,2]
[394180952,1763358632810,-500.0,0.00017999,2]
[394180953,1763358632819,-500.0,0.00017999,2]
[394180954,1763358632828,-189.42948421,0.00017999,2]
[394180955,1763358632837,-500.0,0.00017999,2]
[394180956,1763358632847,-290.53772378,0.00017999,2]
[394180957,1763358632856,-196.39990074,0.00017999,2]
[394180958,1763358632866,-51342.30066195,0.00018,2]
[394180959,1763358632878,-13582.1861054,0.00018,2]
[394180963,1763358637767,-4225.13982015,0.00018,2]
[394180964,1763358637780,-270.34557186,0.00018,2]
[394180965,1763358637824,-684.9144548,0.00018,2]
[394180966,1763358637836,-1890710.23379517,0.00018,2]
[394180967,1763358637849,-480.70139748,0.00018,2]
[394181430,1763358644422,-172525.83148751,0.00018,2]
[394181431,1763358644431,-432.03539,0.00018,2]
[394181432,1763358644443,-161.14,0.00018273,2]
[394181433,1763358644452,-170.11358075,0.00018281,2]
[394181434,1763358644463,-166.66,0.00018306,2]
[394181435,1763358644473,-1118.24727564,0.00018573,2]
[394181436,1763358644483,-166.66,0.00018668,2]
[394181437,1763358644492,-300.0,0.00018789,2]
[394181438,1763358644501,-3431.0,0.0001879,2]
[394181439,1763358644511,-1318.0,0.0001879,2]
[394181441,1763358644522,-575.0,0.0001879,2]
[394181443,1763358644533,-608.0,0.0001879,2]
[394181445,1763358644543,-821.0,0.0001879,2]
[394181446,1763358644552,-793.0,0.0001879,2]
[394181447,1763358644563,-1275.0,0.0001879,2]
[394181448,1763358644572,-705.0,0.0001879,2]
[394181449,1763358644583,-1604.0,0.0001879,2]
[394181450,1763358644592,-6489.0,0.0001879,2]
[394181451,1763358644604,-560.0,0.0001879,2]
[394181452,1763358644614,-500.0,0.00018822,2]
[394181453,1763358644623,-168.0,0.00018894,2]
[394181454,1763358644632,-217.38343631,0.00019,2]
[394181455,1763358644642,-168.0,0.00019027,2]
[394181456,1763358644651,-166.66,0.00019031,2]
[394181457,1763358644661,-168.0,0.00019119,2]
[394181458,1763358644670,-302.93030867,0.00019631,2]
[394181459,1763358644680,-195.0,0.00019631,2]
[394181460,1763358644689,-500.0,0.00019781,2]
[394181461,1763358644699,-12000.08517339,0.000199,2]
[394181462,1763358644708,-17142.07112092,0.0001991,2]
[394181463,1763358644717,-432.0354,0.0002,2]
[394181465,1763358644726,-150.99,0.00020145,2]
[394181467,1763358644736,-286.52,0.00020145,2]
[394181469,1763358644745,-286.1,0.00020145,2]
[394181470,1763358644754,-160.85,0.00020161,2]
[394181471,1763358644763,-11655.0,0.00020165,2]
[394181472,1763358644772,-300.0,0.00020169,2]
[394181473,1763358644781,-365.3,0.00020187,2]
[394181474,1763358644791,-891.17,0.00020201,2]
[394181475,1763358644800,-172.77953155,0.00020504,2]
[394181476,1763358644810,-161.14,0.00020515,2]
[394181477,1763358644819,-322.6107,0.00020756,2]
[394181478,1763358644828,-277.35679052,0.00020756,2]
[394181479,1763358644837,-500.0,0.00020756,2]
[394181480,1763358644848,-500.0,0.00020756,2]
[394181481,1763358644858,-500.0,0.00020756,2]
[394181482,1763358644867,-500.0,0.00020756,2]
[394181483,1763358644876,-500.0,0.00020756,2]
[394181484,1763358644886,-629.01398697,0.00020756,2]
[394181485,1763358645129,-500.0,0.00020756,2]
[394181487,1763358645138,-500.0,0.00020756,2]
[394181488,1763358645147,-500.0,0.00020756,2]
[394181489,1763358645157,-500.0,0.00020756,2]
[394181490,1763358645166,-500.0,0.00020756,2]
[394181491,1763358645175,-500.0,0.00020756,2]
[394181492,1763358645184,-891.17,0.00020958,2]
[394181493,1763358645193,-150.0,0.00021188,2]
[394181494,1763358645203,-999.0,0.00021222,3]
[394181495,1763358645212,-1852.42,0.00021397,2]
[394181496,1763358645224,-1000.0,0.00021514,2]
[394181497,1763358645233,-250.0,0.0002156,2]
[394181498,1763358645242,-1778.97978241,0.00021562,2]
[394181499,1763358645251,-1778.97978241,0.00021644,2]
[394181500,1763358645260,-891.17,0.00021716,2]
[394181501,1763358645269,-1778.97978241,0.00021726,2]
[394181502,1763358645278,-5922.48,0.00021778,2]
[394181503,1763358645287,-1318.0,0.0002179,2]
[394181504,1763358645297,-575.0,0.0002179,2]
[394181505,1763358645306,-608.0,0.0002179,2]
[394181506,1763358645315,-821.0,0.0002179,2]
[394181507,1763358645325,-793.0,0.0002179,2]
[394181508,1763358645334,-1275.0,0.0002179,2]
[394181509,1763358645343,-705.0,0.0002179,2]
[394181510,1763358645354,-1604.0,0.0002179,2]
[394181511,1763358645364,-2410.528,0.0002179,2]
[394181512,1763358645374,-359.127,0.0002179,2]
[394181513,1763358645383,-479.1746172,0.00021834,2]
[394181514,1763358645392,-200.0,0.00021834,2]
[394181515,1763358645401,-1778.97978241,0.00021836,2]
[394181516,1763358645411,-12000.08517339,0.000219,2]
[394181517,1763358645420,-5000.0,0.00021918,2]
[394181518,1763358645429,-1778.97978241,0.00021918,2]
[394181519,1763358645439,-173.39,0.00021918,2]
[394181520,1763358645448,-17142.07112092,0.0002192,2]
[394181521,1763358645458,-500.0,0.00022,2]
[394181522,1763358645467,-432.0354,0.00022,2]
[394181523,1763358645477,-239.86,0.00022,2]
[394181524,1763358645486,-1778.97978241,0.00022,2]
[394181525,1763358645496,-478.25,0.00022008,2]
[394181526,1763358645505,-478.25,0.00022008,2]
[394181527,1763358645517,-475.53,0.00022008,2]
[394181528,1763358645532,-1778.97978241,0.00022082,2]
[394181529,1763358645542,-287.61899177,0.00022125,2]
[394181530,1763358645552,-1778.97978241,0.00022164,2]
[394181531,1763358645562,-2000.0,0.000222,2]
[394181532,1763358645571,-1778.97978241,0.00022247,2]
[394181533,1763358645580,-1778.97978241,0.00022356,2]
[394181534,1763358645590,-1118.24727562,0.00022374,2]
[394181535,1763358645601,-300.0,0.00022421,2]
[394181536,1763358645611,-1778.97978241,0.00022438,2]
[394181537,1763358645620,-661.83,0.00022461,2]
[394181538,1763358645629,-891.17,0.00022473,2]
[394181539,1763358645640,-1778.97978241,0.00022521,2]
[394181540,1763358645649,-172.77953155,0.00023109,2]
[394181541,1763358645659,-891.17,0.00023231,2]
[394181542,1763358645669,-200.0,0.00023286,2]
[394181543,1763358645679,-179.53,0.00023425,2]
[394181544,1763358645688,-150.5,0.00023425,2]
[394181545,1763358645699,-298.26089446,0.00023494,2]
[394181546,1763358645709,-1000.0,0.00023574,2]
[394181547,1763358645719,-1010.0,0.000236,2]
[394181548,1763358645728,-12000.08517339,0.000239,2]
[394181549,1763358645738,-17142.07112092,0.00023929,2]
[394181550,1763358645747,-432.0354,0.00024,2]
[394181551,1763358645756,-300.0,0.00024212,2]
[394181552,1763358645766,-150.0,0.00024247,2]
[394181553,1763358645775,-150.0,0.00024247,2]
[394181554,1763358645784,-150.0,0.00024247,2]
[394181555,1763358645795,-150.0,0.00024247,2]
[394181556,1763358645804,-150.0,0.00024247,2]
[394181557,1763358645814,-150.0,0.00024247,2]
[394181558,1763358645825,-300.0,0.00024247,2]
[394181559,1763358645837,-300.0,0.00024399,2]
[394181560,1763358645847,-239.86,0.00024435,2]
[394181561,1763358645858,-200.0,0.00024596,2]
[394181562,1763358645867,-10000.0,0.000247,2]
[394181563,1763358645879,-203.108012,0.000247,2]
[394181564,1763358645889,-788.0,0.00024701,2]
[394181565,1763358645899,-1318.0,0.0002479,2]
[394181566,1763358645910,-575.0,0.0002479,2]
[394181567,1763358645921,-608.0,0.0002479,2]
[394181568,1763358645931,-821.0,0.0002479,2]
[394181569,1763358645942,-793.0,0.0002479,2]
[394181570,1763358645952,-1275.0,0.0002479,2]
[394181571,1763358645962,-705.0,0.0002479,2]
[394181572,1763358645975,-1604.0,0.0002479,2]
[394181573,1763358645985,-55870.47639515,0.00024794,2]
[394181574,1763358645995,-166.0,0.00024794,2]
[394181575,1763358646006,-159.87502782,0.00024794,2]
[394181576,1763358646016,-152.0,0.00024794,2]
[394181577,1763358646027,-152.0,0.00024794,2]
[394181578,1763358646037,-152.0,0.00024794,2]
[394181579,1763358646048,-152.0,0.00024794,2]
[394181580,1763358646056,-152.0,0.00024794,2]
[394181581,1763358646066,-152.0,0.00024794,2]
[394181582,1763358646075,-152.0,0.00024794,2]
[394181583,1763358646085,-152.0,0.00024794,2]
[394181584,1763358646095,-152.0,0.00024794,2]
[394181585,1763358646104,-152.0,0.00024794,2]
[394181586,1763358646115,-152.0,0.00024794,2]
[394181587,1763358646125,-152.0,0.00024794,2]
[394181588,1763358646134,-152.0,0.00024794,2]
[394181589,1763358646143,-152.0,0.00024794,2]
[394181590,1763358646153,-152.0,0.00024794,2]
[394181591,1763358646163,-152.0,0.00024794,2]
[394181592,1763358646172,-287.95976282,0.00024794,2]
[394181593,1763358646182,-379.37,0.00024795,2]
[394181594,1763358646192,-500.0,0.00024795,2]
[394181595,1763358646201,-500.0,0.00024795,2]
[394181596,1763358646211,-500.0,0.00024795,2]
[394181597,1763358646222,-1546.48021251,0.00024795,2]
[394181598,1763358646232,-191.04033552,0.00024799,2]
[394181599,1763358646241,-500.0,0.00024799,2]
[394181600,1763358646251,-479.1746172,0.000248,3]
[394181601,1763358646260,-4286.93,0.000248,7]
[394181602,1763358646270,-184.240437,0.000248,7]
[394181603,1763358646279,-151.0,0.000248,7]
[394181604,1763358646288,-151.0,0.000248,7]
[394181605,1763358646298,-155.948536,0.000248,7]
[394181606,1763358646308,-152.233638,0.000248,7]
[394181607,1763358646317,-151.0,0.000248,7]
[394181608,1763358646327,-151.0,0.000248,7]
[394181609,1763358646336,-151.0,0.000248,7]
[394181610,1763358646345,-151.0,0.000248,7]
[394181611,1763358646355,-151.0,0.000248,7]
[394181612,1763358646365,-151.0,0.000248,7]
[394181613,1763358646375,-151.0,0.000248,7]
[394181614,1763358646385,-151.0,0.000248,7]
[394181615,1763358646395,-151.0,0.000248,7]
[394181616,1763358646406,-154.616043,0.000248,7]
[394181617,1763358646415,-151.0,0.000248,7]
[394181618,1763358646424,-151.0,0.000248,7]
[394181619,1763358646434,-151.0,0.000248,7]
[394181620,1763358646444,-268.0,0.000248,5]
[394181621,1763358646455,-151.0,0.000248,7]
[394181622,1763358646464,-151.0,0.000248,7]
[394181623,1763358646475,-151.0,0.000248,7]
[394181624,1763358646484,-151.0,0.000248,7]
[394181625,1763358646493,-151.0,0.000248,7]
[394181626,1763358646502,-290.335612,0.000248,7]
[394181627,1763358646512,-152.341092,0.000248,7]
[394181628,1763358646525,-151.0,0.000248,7]
[394181629,1763358646535,-151.0,0.000248,7]
[394181630,1763358646544,-151.0,0.000248,7]
[394181631,1763358646554,-151.0,0.000248,7]
[394181633,1763358646563,-151.0,0.000248,7]
[394181635,1763358646575,-151.0,0.000248,7]